fUSD/lending_fUSD_20240922
["ID","MTS","AMOUNT","RATE_DAILY","PERIOD"]
[338887978,1727013046334,-152.28907,0.00013699,2]
[338887979,1727013046343,-2035.995714,0.00013699,2]
[338887981,1727013046352,-2035.995714,0.00013699,2]
[338887983,1727013046362,-151.0,0.00013699,2]
[338887985,1727013046371,-298.589682,0.00013699,2]
[338887987,1727013046380,-4746.911012,0.00013699,2]
[338887989,1727013046390,-4746.911012,0.00013699,2]
[338887991,1727013046400,-151.0,0.00013699,2]
[338887993,1727013046410,-1057.408113,0.00013699,2]
[338887994,1727013046420,-286.043797,0.00013699,2]
[338887995,1727013046429,-1057.408113,0.00013699,2]
[338887996,1727013046438,-500.0,0.000137,5]
[338887997,1727013046448,-7552.38164643,0.00013733,2]
[338887998,1727013046457,-151.0,0.000138,2]
[338887999,1727013046467,-202.718728,0.000138,2]
[338888000,1727013046476,-178.13315,0.000138,2]
[338888001,1727013046485,-178.133154,0.000138,2]
[338888002,1727013046495,-151.0,0.000138,2]
[338888003,1727013046508,-213.257268,0.000138,2]
[338888004,1727013046517,-151.0,0.000138,2]
[338888005,1727013046527,-151.0,0.000138,2]
[338888006,1727013046536,-151.0,0.000138,2]
[338888007,1727013046546,-151.0,0.000138,2]
[338888008,1727013046557,-207.710512,0.000138,2]
[338888009,1727013046566,-207.710512,0.000138,2]
[338888011,1727013046575,-207.710512,0.000138,2]
[338888013,1727013046586,-207.710512,0.000138,2]
[338888014,1727013046595,-151.0,0.000138,2]
[338888015,1727013046604,-247.425141,0.000138,2]
[338888016,1727013046615,-247.425141,0.000138,2]
[338888017,1727013046624,-247.425141,0.000138,2]
[338888018,1727013046633,-247.425141,0.000138,2]
[338888020,1727013046642,-713.666891,0.000138,2]
[338888022,1727013046652,-713.666891,0.000138,2]
[338888024,1727013046662,-713.666891,0.000138,2]
[338888026,1727013046671,-713.666891,0.000138,2]
[338888028,1727013046680,-208.436999,0.000138,2]
[338888030,1727013046690,-208.436999,0.000138,2]
[338888032,1727013046699,-208.436999,0.000138,2]
[338888034,1727013046709,-208.436999,0.000138,2]
[338888036,1727013046718,-151.0,0.000138,2]
[338888038,1727013046727,-324.210535,0.000138,2]
[338888040,1727013046737,-324.210535,0.000138,2]
[338888042,1727013046746,-324.210535,0.000138,2]
[338888044,1727013046755,-151.75346,0.000138,2]
[338888046,1727013046764,-324.210535,0.000138,2]
[338888047,1727013046774,-309.775278,0.000138,2]
[338888048,1727013046783,-309.775278,0.000138,2]
[338888049,1727013046793,-151.0,0.000138,2]
[338888050,1727013046802,-694.020551,0.000138,2]
[338888051,1727013046812,-694.020551,0.000138,2]
[338888052,1727013046821,-2813.854536,0.000138,2]
[338888053,1727013046831,-2813.854536,0.000138,2]
[338888054,1727013046841,-151.0,0.000138,2]
[338888055,1727013046850,-151.0,0.000138,2]
[338888056,1727013046860,-151.0,0.000138,2]
[338888057,1727013046869,-458.444351,0.000138,2]
[338888058,1727013046879,-154.629338,0.000138,2]
[338888059,1727013046888,-458.444351,0.000138,2]
[338888060,1727013046898,-154.629338,0.000138,2]
[338888061,1727013046907,-153.312594,0.000138,2]
[338888062,1727013046916,-151.0,0.000138,2]
[338888063,1727013046926,-437.472048,0.000138,2]
[338888064,1727013046936,-4195.873243,0.000138,2]
[338888065,1727013046946,-437.472048,0.000138,2]
[338888066,1727013046955,-4195.873243,0.000138,2]
[338888067,1727013046965,-151.0,0.000138,2]
[338888068,1727013046975,-151.0,0.000138,2]
[338888069,1727013046985,-2078.433348,0.000138,2]
[338888070,1727013046995,-2078.433348,0.000138,2]
[338888071,1727013047005,-2035.995714,0.000138,2]
[338888072,1727013047014,-2035.995714,0.000138,2]
[338888073,1727013047023,-4746.911012,0.000138,2]
[338888074,1727013047033,-4746.911012,0.000138,2]
[338888075,1727013047043,-1503.085045,0.000138,2]
[338888076,1727013047052,-1503.085045,0.000138,2]
[338888077,1727013047063,-187.752874,0.000138,2]
[338888078,1727013047072,-151.0,0.000138,2]
[338888079,1727013047082,-187.752874,0.000138,2]
[338888080,1727013047092,-151.0,0.000138,2]
[338888081,1727013047102,-151.0,0.000138,2]
[338888082,1727013047145,-1503.085045,0.000138,2]
[338888083,1727013047154,-1057.408113,0.000138,2]
[338888084,1727013047164,-187.752874,0.000138,2]
[338888085,1727013047173,-187.752874,0.000138,2]
[338888086,1727013047182,-1503.085045,0.000138,2]
[338888087,1727013047192,-1057.408113,0.000138,2]
[338888088,1727013047201,-1428.095311,0.000138,2]
[338888089,1727013047210,-1428.095311,0.000138,2]
[338888090,1727013047220,-1428.095311,0.000138,2]
[338888091,1727013047230,-1428.095311,0.000138,2]
[338888092,1727013047240,-2353.444126,0.000138,2]
[338888093,1727013047249,-2353.444126,0.000138,2]
[338888094,1727013047258,-2353.444126,0.000138,2]
[338888095,1727013047268,-2353.444126,0.000138,2]
[338888096,1727013047278,-152.812777,0.000138,2]
[338888097,1727013047287,-151.0,0.000138,2]
[338888098,1727013047296,-151.0,0.000138,2]
[338888099,1727013047306,-151.0,0.000138,2]
[338888100,1727013047315,-289.739301,0.000138,2]
[338888101,1727013047324,-151.0,0.000138,2]
[338888102,1727013047333,-151.0,0.000138,2]
[338888103,1727013047343,-158.576022,0.000138,2]
[338888104,1727013047352,-158.576022,0.000138,2]
[338888105,1727013047362,-158.576022,0.000138,2]
[338888106,1727013047371,-158.576022,0.000138,2]
[338888107,1727013047380,-10000.0,0.000138,2]
[338888108,1727013047390,-10000.0,0.000138,2]
[338888109,1727013047399,-10000.0,0.000138,2]
[338888110,1727013047408,-10000.0,0.000138,2]
[338888111,1727013047418,-10000.0,0.000138,2]
[338888112,1727013047427,-10000.0,0.000138,2]
[338888113,1727013047436,-151.0,0.000138,2]
[338888114,1727013047446,-151.0,0.000138,2]
[338888115,1727013047455,-151.0,0.000138,2]
[338888116,1727013047464,-151.0,0.000138,2]
[338888117,1727013047474,-623.19509,0.000138,2]
[338888118,1727013047483,-623.19509,0.000138,2]
[338888119,1727013047492,-75944.51261363,0.000138,3]
[338888120,1727013047645,-221859.10608023,0.000138,3]
[338888121,1727013047657,-68404.20260214,0.000138,3]
[338888122,1727013047666,-151.0,0.000138,2]
[338888123,1727013047676,-151.0,0.000138,2]
[338888124,1727013047685,-623.19509,0.000138,2]
[338888125,1727013047694,-623.19509,0.000138,2]
[338888126,1727013047704,-572.536272,0.000138,2]
[338888127,1727013047713,-572.536272,0.000138,2]
[338888128,1727013047723,-2280.275429,0.000138,2]
[338888129,1727013047732,-2280.275429,0.000138,2]
[338888130,1727013047742,-2280.275429,0.000138,2]
[338888131,1727013047753,-2280.275429,0.000138,2]
[338888132,1727013047762,-151.0,0.000138,2]
[338888133,1727013047771,-151.0,0.000138,2]
[338888134,1727013047781,-175.182425,0.000138,2]
[338888135,1727013047791,-175.182425,0.000138,2]
[338888136,1727013047801,-151.0,0.000138,2]
[338888137,1727013047810,-221.786426,0.000138,2]
[338888138,1727013047820,-170.245124,0.000138,2]
[338888139,1727013047829,-170.245124,0.000138,2]
[338888140,1727013047838,-221.786426,0.000138,2]
[338888141,1727013047847,-151.0,0.000138,2]
[338888142,1727013047856,-151.0,0.000138,2]
[338888143,1727013047866,-170.245124,0.000138,2]
[338888144,1727013047875,-170.245124,0.000138,2]
[338888145,1727013047884,-618.50476,0.000138,2]
[338888146,1727013047893,-209.87375,0.000138,2]
[338888147,1727013047902,-618.50476,0.000138,2]
[338888148,1727013047912,-209.87375,0.000138,2]
[338888149,1727013047921,-209.87375,0.000138,2]
[338888150,1727013047931,-209.87375,0.000138,2]
[338888151,1727013047940,-151.0,0.000138,2]
[338888152,1727013047950,-151.0,0.000138,2]
[338888153,1727013047959,-151.0,0.000138,2]
[338888154,1727013047968,-155.507751,0.000138,2]
[338888155,1727013047977,-185.285588,0.000138,2]
[338888156,1727013047987,-185.285588,0.000138,2]
[338888157,1727013047996,-415.367126,0.000138,2]
[338888158,1727013048005,-415.367126,0.000138,2]
[338888159,1727013048015,-152.589947,0.000138,2]
[338888160,1727013048024,-174.681075,0.000138,2]
[338888161,1727013048034,-151.0,0.000138,2]
[338888162,1727013048043,-174.681075,0.000138,2]
[338888163,1727013048053,-174.681075,0.000138,2]
[338888164,1727013048062,-174.681075,0.000138,2]
[338888165,1727013048072,-207.474658,0.000138,2]
[338888166,1727013048081,-207.474658,0.000138,2]
[338888167,1727013048090,-5056.796809,0.000138,2]
[338888168,1727013048101,-5056.796809,0.000138,2]
[338888169,1727013048110,-207.474658,0.000138,2]
[338888170,1727013048119,-207.474658,0.000138,2]
[338888171,1727013048129,-5056.796809,0.000138,2]
[338888172,1727013048138,-5056.796809,0.000138,2]
[338888173,1727013048148,-151.0,0.000138,2]
[338888174,1727013048158,-151.0,0.000138,2]
[338888175,1727013048167,-8921.55572273,0.00013802,2]
[338888176,1727013048179,-6622.50067403,0.00013802,2]
[338888177,1727013048191,-1339.999998,0.00013802,2]
[338888178,1727013048203,-1275.2531778,0.00013802,2]
[338888179,1727013048213,-1748.56626615,0.00013802,2]
[338888180,1727013048225,-1467.8621135,0.00013802,2]
[338888181,1727013048236,-1998.33931779,0.00013802,2]
[338888182,1727013048246,-1528.55597,0.00013802,2]
[338888183,1727013048255,-457.898033,0.00013802,2]
[338888184,1727013048265,-305.265356,0.00013802,2]
[338888185,1727013048275,-17632.081759,0.00013802,2]
[338888186,1727013048284,-410.702495,0.00013802,2]
[338888187,1727013048294,-151.0,0.00013802,2]
[338888188,1727013048310,-354.122058,0.00013802,2]
[338888189,1727013048320,-258.090039,0.00013802,2]
[338888190,1727013048329,-258.090039,0.00013802,2]
[338888191,1727013048339,-151.0,0.00013802,2]
[338888192,1727013048349,-151.0,0.00013802,2]
[338888193,1727013048359,-151.0,0.00013802,2]
[338888194,1727013048369,-151.0,0.00013802,2]
[338888195,1727013048379,-151.0,0.00013802,2]
[338888196,1727013048389,-151.0,0.00013802,2]
[338888197,1727013048398,-151.0,0.00013802,2]
[338888198,1727013048407,-642.280007,0.00013802,2]
[338888199,1727013048417,-151.0,0.00013802,2]
[338888200,1727013048426,-642.280007,0.00013802,2]
[338888201,1727013048436,-151.0,0.00013802,2]
[338888202,1727013048445,-799.0,0.0001386,2]
[338888203,1727013048454,-587.60001115,0.00013873,2]
[338888204,1727013048463,-500.4678074,0.00013873,2]
[338888205,1727013048473,-500.0,0.00013873,2]
[338888206,1727013048482,-500.0,0.00013873,2]
[338888207,1727013048491,-500.0,0.00013873,2]
[338888208,1727013048500,-48695.03006115,0.000139,2]
[338888209,1727013048560,-151.0,0.00013094,2]
[338888210,1727013048569,-151.0,0.000138,2]
[338888211,1727013048579,-151.0,0.000138,2]
[338888212,1727013048588,-5414.91004832,0.000139,2]
[338888213,1727013048599,-1535.85323252,0.000139,2]
[338888214,1727013048615,-238.714,0.00013,2]
[338888215,1727013048625,-1050.48589872,0.000139,2]
[338888216,1727013048635,-1732.180449,0.000139,2]
[338888217,1727013048647,-589.17,0.000139,2]
[338888218,1727013048657,-7365.16641705,0.000139,2]
[338888219,1727013048668,-6723.34743954,0.000139,2]
[338888220,1727013048692,-128999.6543112,0.000139,2]
[338888221,1727013048701,-151.0,0.000139,2]
[338888222,1727013048711,-354.122058,0.000139,2]
[338888223,1727013048720,-258.090039,0.000139,2]
[338888224,1727013048729,-258.090039,0.000139,2]
[338888225,1727013048739,-151.0,0.000139,2]
[338888226,1727013048748,-151.0,0.000139,2]
[338888227,1727013048758,-151.0,0.000139,2]
[338888228,1727013048768,-151.0,0.000139,2]
[338888229,1727013048778,-151.0,0.000139,2]
[338888230,1727013048788,-264.758921,0.000139,2]
[338888231,1727013048797,-151.0,0.000139,2]
[338888232,1727013048807,-207.710512,0.000139,2]
[338888233,1727013048816,-207.710512,0.000139,2]
[338888234,1727013048826,-151.0,0.000139,2]
[338888235,1727013048835,-247.425141,0.000139,2]
[338888236,1727013048845,-247.425141,0.000139,2]
[338888237,1727013048854,-713.666891,0.000139,2]
[338888238,1727013048864,-713.666891,0.000139,2]
[338888239,1727013048873,-208.436999,0.000139,2]
[338888240,1727013048882,-208.436999,0.000139,2]
[338888241,1727013048891,-151.0,0.000139,2]
[338888242,1727013048901,-324.210535,0.000139,2]
[338888243,1727013048910,-324.210535,0.000139,2]
[338888244,1727013048920,-309.775278,0.000139,2]
[338888245,1727013048929,-309.775278,0.000139,2]
[338888246,1727013048939,-694.020551,0.000139,2]
[338888247,1727013048949,-694.020551,0.000139,2]
[338888248,1727013048958,-2813.854536,0.000139,2]
[338888249,1727013048967,-2813.854536,0.000139,2]
[338888250,1727013048977,-151.0,0.000139,2]
[338888251,1727013048986,-257.93369,0.000139,2]
[338888252,1727013048995,-458.444351,0.000139,2]
[338888253,1727013049004,-154.629338,0.000139,2]
[338888254,1727013049014,-458.444351,0.000139,2]
[338888255,1727013049023,-154.629338,0.000139,2]
[338888256,1727013049033,-151.0,0.000139,2]
[338888257,1727013049042,-151.0,0.000139,2]
[338888258,1727013049052,-151.0,0.000139,2]
[338888259,1727013049069,-151.0,0.000139,2]
[338888260,1727013049078,-151.0,0.000139,2]
[338888261,1727013049087,-151.0,0.000139,2]
[338888262,1727013049097,-642.280007,0.000139,2]
[338888263,1727013049106,-151.0,0.000139,2]
[338888264,1727013049115,-642.280007,0.000139,2]
[338888265,1727013049125,-151.0,0.000139,2]
[338888266,1727013049134,-437.472048,0.000139,2]
[338888267,1727013049144,-4195.873243,0.000139,2]
[338888268,1727013049153,-437.472048,0.000139,2]
[338888269,1727013049162,-4195.873243,0.000139,2]
[338888270,1727013049172,-151.0,0.000139,2]
[338888271,1727013049181,-297.776833,0.000139,2]
[338888272,1727013049190,-151.0,0.000139,2]
[338888273,1727013049200,-151.0,0.000139,2]
[338888274,1727013049209,-792.224181,0.000139,2]
[338888275,1727013049218,-792.224181,0.000139,2]
[338888276,1727013049228,-253.549941,0.000139,2]
[338888277,1727013049237,-253.549941,0.000139,2]
[338888278,1727013049246,-161.61428303,0.000139,2]
[338888279,1727013049255,-357.631653,0.000139,2]
[338888280,1727013049265,-385.556894,0.000139,2]
[338888281,1727013049274,-151.0,0.000139,2]
[338888282,1727013049284,-357.631653,0.000139,2]
[338888283,1727013049294,-385.556894,0.000139,2]
[338888284,1727013049306,-151.0,0.000139,2]
[338888285,1727013049316,-305.04538,0.000139,2]
[338888286,1727013049325,-305.04538,0.000139,2]
[338888287,1727013049334,-204.884156,0.000139,2]
[338888288,1727013049344,-204.884156,0.000139,2]
[338888289,1727013049353,-151.0,0.000139,2]
[338888290,1727013049363,-151.928449,0.000139,2]
[338888291,1727013049372,-151.0,0.000139,2]
[338888292,1727013049382,-2078.433348,0.000139,2]
[338888293,1727013049392,-152.28907,0.000139,2]
[338888294,1727013049401,-2078.433348,0.000139,2]
[338888295,1727013049410,-152.28907,0.000139,2]
[338888296,1727013049420,-2035.995714,0.000139,2]
[338888297,1727013049429,-2035.995714,0.000139,2]
[338888298,1727013049438,-151.0,0.000139,2]
[338888299,1727013049447,-4746.911012,0.000139,2]
[338888300,1727013049456,-4746.911012,0.000139,2]
[338888301,1727013049466,-1503.085045,0.000139,2]
[338888302,1727013049476,-151.0,0.000139,2]
[338888303,1727013049485,-187.752874,0.000139,2]
[338888304,1727013049495,-151.0,0.000139,2]
[338888305,1727013049506,-1057.408113,0.000139,2]
[338888306,1727013049516,-187.752874,0.000139,2]
[338888307,1727013049526,-1503.085045,0.000139,2]
[338888308,1727013049535,-1057.408113,0.000139,2]
[338888309,1727013049545,-1428.095311,0.000139,2]
[338888310,1727013049555,-1428.095311,0.000139,2]
[338888311,1727013049565,-2353.444126,0.000139,2]
[338888312,1727013049574,-2353.444126,0.000139,2]
[338888313,1727013049585,-151.0,0.000139,2]
[338888314,1727013049595,-151.324014,0.000139,2]
[338888315,1727013049605,-158.576022,0.000139,2]
[338888316,1727013049614,-158.576022,0.000139,2]
[338888317,1727013049623,-10000.0,0.000139,2]
[338888318,1727013049632,-10000.0,0.000139,2]
[338888319,1727013049641,-14.85788776,0.000139,2]
[338888320,1727013049655,-1807.10551124,0.000139,2]
[338888321,1727013049664,-151.0,0.000139,2]
[338888322,1727013049674,-151.0,0.000139,2]
[338888323,1727013049683,-623.19509,0.000139,2]
[338888324,1727013049693,-7552.38164643,0.000139,2]
[338888325,1727013049702,-151.0,0.000139,2]
[338888326,1727013049712,-623.19509,0.000139,2]
[338888327,1727013049721,-572.536272,0.000139,2]
[338888328,1727013049731,-44530.64168932,0.000139,3]
[338888329,1727013049747,-2325.34922941,0.000139,3]
[338888330,1727013049949,-1586.3270826,0.000129,2]
[338888331,1727013049959,-14710.88,0.00013,2]
[338888332,1727013049969,-250.106186,0.00013094,2]
[338888333,1727013049979,-250.106186,0.000138,2]
[338888334,1727013049989,-250.106186,0.000138,2]
[338888335,1727013049999,-683.0,0.000139,2]
[338888336,1727013050008,-66398.38068327,0.000139,3]
[338888337,1727013050018,-572.536272,0.000139,2]
[338888338,1727013050027,-2280.275429,0.000139,2]
[338888339,1727013050037,-2280.275429,0.000139,2]
[338888340,1727013050048,-151.0,0.000139,2]
[338888341,1727013050059,-175.182425,0.000139,2]
[338888342,1727013050069,-175.182425,0.000139,2]
[338888343,1727013050079,-221.786426,0.000139,2]
[338888344,1727013050088,-170.245124,0.000139,2]
[338888345,1727013050098,-221.786426,0.000139,2]
[338888346,1727013050108,-151.0,0.000139,2]
[338888347,1727013050117,-170.245124,0.000139,2]
[338888348,1727013050127,-618.50476,0.000139,2]
[338888349,1727013050137,-618.50476,0.000139,2]
[338888350,1727013050147,-618.50476,0.000139,2]
[338888351,1727013050156,-209.87375,0.000139,2]
[338888352,1727013050166,-618.50476,0.000139,2]
[338888353,1727013050175,-132.79936493,0.000139,2]
[338888354,1727013050188,-77.07438507,0.000139,2]
[338888355,1727013050198,-151.0,0.000139,2]
[338888356,1727013050208,-185.285588,0.000139,2]
[338888357,1727013050218,-185.285588,0.000139,2]
[338888358,1727013050228,-415.367126,0.000139,2]
[338888359,1727013050238,-415.367126,0.000139,2]
[338888360,1727013050248,-415.367126,0.000139,2]
[338888361,1727013050259,-415.367126,0.000139,2]
[338888362,1727013050268,-151.0,0.000139,2]
[338888363,1727013050278,-174.681075,0.000139,2]
[338888364,1727013050288,-174.681075,0.000139,2]
[338888365,1727013050299,-207.474658,0.000139,2]
[338888366,1727013050309,-5056.796809,0.000139,2]
[338888367,1727013050319,-207.474658,0.000139,2]
[338888368,1727013050328,-5056.796809,0.000139,2]
[338888369,1727013050338,-151.0,0.000139,2]
[338888370,1727013050348,-250.106186,0.000139,2]
[338888371,1727013050358,-172.14,0.00013933,2]
[338888372,1727013050368,-151.0,0.00013972,2]
[338888373,1727013050378,-309.775278,0.00013972,2]
[338888374,1727013050388,-309.775278,0.00013972,2]
[338888375,1727013050398,-694.020551,0.00013972,2]
[338888376,1727013050407,-694.020551,0.00013972,2]
[338888377,1727013050417,-2813.854536,0.00013972,2]
[338888378,1727013050427,-2813.854536,0.00013972,2]
[338888379,1727013050438,-151.0,0.00013972,2]
[338888380,1727013050447,-458.444351,0.00013972,2]
[338888381,1727013050458,-154.629338,0.00013972,2]
[338888382,1727013050468,-458.444351,0.00013972,2]
[338888383,1727013050478,-154.629338,0.00013972,2]
[338888384,1727013050487,-151.0,0.00013972,2]
[338888385,1727013050497,-2078.433348,0.00013972,2]
[338888386,1727013050511,-2078.433348,0.00013972,2]
[338888387,1727013050521,-2035.995714,0.00013972,2]
[338888388,1727013050531,-2035.995714,0.00013972,2]
[338888389,1727013050540,-4746.911012,0.00013972,2]
[338888390,1727013050550,-4746.911012,0.00013972,2]
[338888391,1727013050560,-1503.085045,0.00013972,2]
[338888392,1727013050570,-151.0,0.00013972,2]
[338888393,1727013050579,-187.752874,0.00013972,2]
[338888394,1727013050588,-151.0,0.00013972,2]
[338888395,1727013050598,-1057.408113,0.00013972,2]
[338888396,1727013050609,-187.752874,0.00013972,2]
[338888397,1727013050619,-1503.085045,0.00013972,2]
[338888398,1727013050629,-1057.408113,0.00013972,2]
[338888399,1727013050639,-1428.095311,0.00013972,2]
[338888400,1727013050649,-1428.095311,0.00013972,2]
[338888401,1727013050658,-2353.444126,0.00013972,2]
[338888402,1727013050668,-2353.444126,0.00013972,2]
[338888403,1727013050678,-151.0,0.00013972,2]
[338888404,1727013050688,-158.576022,0.00013972,2]
[338888405,1727013050698,-158.576022,0.00013972,2]
[338888406,1727013050708,-1900.15592563,0.00013972,2]
[338888407,1727013050721,-355.99679615,0.00013972,2]
[338888408,1727013050733,-308.1,0.00013972,2]
[338888409,1727013050746,-7435.74727822,0.00013972,2]
[338888410,1727013050756,-4047.58634738,0.00013972,2]
[338888411,1727013070848,23075.86579516,0.00011604,2]
[338888412,1727013076166,500.0,0.00010136,2]
[338888413,1727013112904,290.43874066,0.00010136,2]
[338888414,1727013158712,1604.9676317,0.00012,3]
[338888415,1727013194891,169.27,0.00010959,2]
[338888416,1727013205116,-150.0,0.00012032,2]
[338888417,1727013205768,-150.0,0.00012032,2]
[338888418,1727013206334,-150.0,0.00012032,2]
[338888419,1727013206753,-150.0,0.00012032,2]
[338888420,1727013207379,-150.0,0.00012032,2]
[338888421,1727013226368,-49.0,0.00012032,2]
[338888422,1727013226390,-101.0,0.00012032,2]
[338888423,1727013227728,-150.0,0.00012032,2]
[338888424,1727013229213,-150.0,0.00012032,2]
[338888425,1727013229622,-150.0,0.00012032,2]
[338888426,1727013230477,-150.0,0.00012032,2]
[338888427,1727013234815,727.99345321,0.00011,2]
[338888428,1727013234843,322.00654679,0.00011,2]
[338888429,1727013251836,-98.0,0.00012032,2]
[338888430,1727013251862,-52.0,0.00012032,2]
[338888431,1727013252705,386.88,0.00010858,2]
[338888432,1727013252808,-150.0,0.00012032,2]
[338888433,1727013253324,-150.0,0.00012032,2]
[338888434,1727013253808,-150.0,0.00012032,2]
[338888435,1727013254214,-150.0,0.00012032,2]
[338888436,1727013274795,-147.0,0.00012032,2]
[338888437,1727013274817,-3.0,0.00012032,2]
[338888438,1727013275112,150.0,0.00010136,2]
[338888439,1727013275693,-150.0,0.00012032,2]
[338888440,1727013276402,-150.0,0.00012032,2]
[338888441,1727013277048,-150.0,0.00012032,2]
[338888442,1727013277804,-150.0,0.00012032,2]
[338888443,1727013278556,-150.0,0.00012032,2]
[338888444,1727013289876,-46.0,0.00012032,2]
[338888445,1727013289899,-104.0,0.00012032,2]
[338888446,1727013290381,-150.0,0.00012032,2]
[338888447,1727013291502,-150.0,0.00012032,2]
[338888448,1727013292212,-150.0,0.00012032,2]
[338888449,1727013293112,-150.0,0.00012032,2]
[338888450,1727013314675,-95.0,0.00012032,2]
[338888451,1727013314696,-55.0,0.00012032,2]
[338888452,1727013315043,-150.0,0.00012032,2]
[338888453,1727013316071,-150.0,0.00012032,2]
[338888454,1727013316715,-150.0,0.00012032,2]
[338888455,1727013322833,450.0,0.00010136,2]
[338888456,1727013364910,300.0,0.00010136,2]
[338888457,1727013771666,390.03,0.00010239,2]
[338888458,1727013953268,250.0,0.00012008,2]
[338888468,1727014118574,152.43,0.00010959,2]
[338888473,1727014172756,207.15,0.00011831,2]
[338888474,1727014231639,-278.24674297,0.00012032,2]
[338888475,1727014231650,-15.75325703,0.00012032,2]
[338888476,1727014231659,-799.0,0.00012032,2]
[338888477,1727014231669,-799.0,0.00012032,2]
[338888478,1727014231678,-7697.5419,0.00012053,2]
[338888479,1727014231688,-150.03,0.00012096,2]
[338888480,1727014231697,-150.0,0.00012124,2]
[338888482,1727014231707,-989.58477862,0.00012132,2]
[338888485,1727014231718,-457.01764906,0.00012132,2]
[338888487,1727014231729,-653.39757232,0.00012132,2]
[338888489,1727014231739,-300.0,0.0001215,2]
[338888491,1727014231748,-546.83,0.0001215,2]
[338888493,1727014231758,-900.0,0.00012153,2]
[338888495,1727014231767,-23830.31703739,0.00012188,2]
[338888497,1727014231778,-2537.17,0.00012197,2]
[338888499,1727014231787,-150.0,0.00012197,2]
[338888501,1727014231796,-1232.97,0.00012197,2]
[338888502,1727014231808,-167.3,0.00012197,2]
[338888505,1727014231817,-3426.6,0.00012197,2]
[338888506,1727014231827,-157.71,0.00012198,2]
[338888509,1727014231835,-799.0,0.00012198,2]
[338888511,1727014231845,-9999.99,0.00012198,2]
[338888513,1727014231854,-25764.17,0.00012198,2]
[338888515,1727014231864,-505.96,0.00012198,2]
[338888517,1727014231873,-499.99,0.00012198,2]
[338888518,1727014231882,-600.0,0.00012417,2]
[338888520,1727014231893,-150.0,0.00012427,2]
[338888522,1727014231904,-153.76,0.00012427,2]
[338888524,1727014231913,-390.03,0.00012503,2]
[338888527,1727014231922,-301.19013755,0.00012711,2]
[338888529,1727014231932,-404.31370693,0.00012773,2]
[338888530,1727014231941,-152.4,0.0001279,2]
[338888532,1727014231951,-306617.83775847,0.000128,2]
[338888534,1727014231966,-14094.7721305,0.000128,2]
[338888537,1727014231976,-348.26422483,0.000128,2]
[338888539,1727014231987,-17456.59072017,0.000128,2]
[338888541,1727014237656,-177.56,0.00012178,2]
[338888542,1727014237667,-177.56,0.00012188,2]
[338888543,1727014237678,-177.56,0.0001279,2]
[338888544,1727014237688,-6865.63742231,0.000128,2]